No of Transactions,Dept_Family,Entity_Name,Cert Date,Supplier Name,Reference,Gross Amt,Group/Department,Type of Expenditure - Subjective Codes
1,DCMS,Historic England,01/03/2019,Allen Valley Enterprise Ltd,0082005257,"114,136.00",Regional Delivery-North East & Yorkshire - RD,Grants Payable Historic Buildings
2,DCMS,Historic England,22/03/2019,Allied Publicity Services Manchester Ltd,0040123758,"-14,426.88",Policy & Evidence-Strategy & Listing,Fees for Professional Advice
3,DCMS,Historic England,15/03/2019,Ancient Monuments Society,0090515534,"40,615.00",Business Improvement-Grants,Grants Payable Other Grants
4,DCMS,Historic England,18/03/2019,AOC Archaeology Group,0040123523,"27,351.60",Regional Delivery-North East & Yorkshire - RD,Fees for Professional Advice
5,DCMS,Historic England,19/03/2019,Apleona HSG Limited,0040123046,"11,744.14",Corporate Services-Facilities Management,Office Cleaning
6,DCMS,Historic England,19/03/2019,Apleona HSG Limited,0040123046,"7,518.23",Corporate Services-Facilities Management,Office Security & Cash Collect
7,DCMS,Historic England,19/03/2019,Apleona HSG Limited,0040123046,"7,400.95",Corporate Services-Facilities Management,Annual Cyclical Works-Building
8,DCMS,Historic England,19/03/2019,Apleona HSG Limited,0040123046,208.08,Corporate Services-Facilities Management,Annual Cyclical Works-Building
9,DCMS,Historic England,19/03/2019,Apleona HSG Limited,0040123046,"13,411.36",Corporate Services-Facilities Management,Annual Cyclical Work M & E
10,DCMS,Historic England,20/03/2019,Apleona HSG Limited,0040123487,"11,744.14",Corporate Services-Facilities Management,Office Cleaning
11,DCMS,Historic England,20/03/2019,Apleona HSG Limited,0040123487,"7,518.23",Corporate Services-Facilities Management,Office Security & Cash Collect
12,DCMS,Historic England,20/03/2019,Apleona HSG Limited,0040123487,"7,400.95",Corporate Services-Facilities Management,Annual Cyclical Works-Building
13,DCMS,Historic England,20/03/2019,Apleona HSG Limited,0040123487,208.08,Corporate Services-Facilities Management,Annual Cyclical Works-Building
14,DCMS,Historic England,20/03/2019,Apleona HSG Limited,0040123487,"13,411.36",Corporate Services-Facilities Management,Annual Cyclical Work M & E
15,DCMS,Historic England,29/03/2019,Apleona HSG Limited,0040124219,"11,744.15",Corporate Services-Facilities Management,Office Cleaning
16,DCMS,Historic England,29/03/2019,Apleona HSG Limited,0040124219,"7,518.23",Corporate Services-Facilities Management,Office Security & Cash Collect
17,DCMS,Historic England,29/03/2019,Apleona HSG Limited,0040124219,"7,400.95",Corporate Services-Facilities Management,Annual Cyclical Works-Building
18,DCMS,Historic England,29/03/2019,Apleona HSG Limited,0040124219,208.07,Corporate Services-Facilities Management,Annual Cyclical Works-Building
19,DCMS,Historic England,29/03/2019,Apleona HSG Limited,0040124219,"13,411.36",Corporate Services-Facilities Management,Annual Cyclical Work M & E
20,DCMS,Historic England,05/03/2019,Bedford Borough Council,0082005267,"85,891.00",Regional Delivery-East - RD,Grants Payable Historic Buildings
21,DCMS,Historic England,12/03/2019,Birmingham City Council,0082005285,"272,311.00",Regional Delivery-Midlands - RD,Grants Payable Historic Buildings
22,DCMS,Historic England,22/03/2019,Blackpool Council,0082005340,"25,000.00",Regional Delivery-North West - RD,Grants Payable Historic Buildings
23,DCMS,Historic England,06/03/2019,"BNP Paribas Real Estate, Rent / Services",0040123632,"29,997.00",Corporate Services-Office Estate,Rent - Operating Leases
24,DCMS,Historic England,07/03/2019,"BNP Paribas Real Estate, Rent / Services",0040123637,"363,234.19",Corporate Services-Office Estate,Rent - Operating Leases
25,DCMS,Historic England,19/03/2019,"BNP Paribas Real Estate, Rent / Services",0040123806,"-12,714.62",Corporate Services-Office Estate,Building Service Charges
26,DCMS,Historic England,05/03/2019,Bromley House Library,0082005264,"192,823.00",Regional Delivery-Midlands - RD,Grants Payable Historic Buildings
27,DCMS,Historic England,11/03/2019,Cambridge Museum of Technology,0082005282,"28,556.00",Regional Delivery-East - RD,Grants Payable Historic Buildings
28,DCMS,Historic England,11/03/2019,Canal and River Trust,0082005278,"98,000.00",Regional Delivery-Midlands - RD,Grants Payable Historic Buildings
29,DCMS,Historic England,20/03/2019,CDW UK,0040123701,"47,124.00",Corporate Services-IMT,Equipment <10k
30,DCMS,Historic England,01/03/2019,Chaddesden St Mary's PCC,0082005254,"35,609.00",Regional Delivery-Midlands - RD,Grants Payable Historic Buildings
31,DCMS,Historic England,15/03/2019,Cornwall Archaeological Unit,0040123740,"27,309.10",Business Improvement-Grants,Hist Environ Prog Projects Gra
32,DCMS,Historic England,04/03/2019,Croft Building and Conservation Ltd,0040123350,"43,286.59",Shrewsbury Flax Mill Maltings-Shrewsbury Flax Mill Maltings,Works for Heritage Buildings
33,DCMS,Historic England,04/03/2019,Croft Building and Conservation Ltd,0040123350,"17,192.20",Shrewsbury Flax Mill Maltings-Shrewsbury Flax Mill Maltings,Works for Heritage Buildings
34,DCMS,Historic England,07/03/2019,Croft Building and Conservation Ltd,0040123660,"175,448.82",Shrewsbury Flax Mill Maltings-Shrewsbury Flax Mill Maltings,Works for Heritage Buildings
35,DCMS,Historic England,22/03/2019,Daisy Communications Ltd,0040123687,"46,832.62",Corporate Services-IMT,Network Contracts
36,DCMS,Historic England,22/03/2019,Daisy Communications Ltd,0040123885,"-43,756.22",Corporate Services-IMT,Network Contracts
37,DCMS,Historic England,07/03/2019,Devon County Council,0081004677,"25,000.00",Business Improvement-Grants,Enabling Programmes Enabling Programmes
38,DCMS,Historic England,22/03/2019,DigVentures Ltd,0081004795,"40,000.00",Business Improvement-Grants,Enabling Programmes Enabling Programmes
39,DCMS,Historic England,11/03/2019,Diocese of Rochester,0082005273,"60,177.00",Regional Delivery-London & South East - RD,Grants Payable Historic Buildings
40,DCMS,Historic England,12/03/2019,ECC Revenue Account,0082005286,"38,986.00",Regional Delivery-East - RD,Grants Payable Historic Buildings
41,DCMS,Historic England,26/03/2019,EDF  ,0020073096,"26,521.04",Corporate Services-Corporate,Electricity
42,DCMS,Historic England,29/03/2019,Ellis and Co Rest and Bldg Ltd,0040124182,"61,275.60",Corporate Services-Corporate,Wrks for Operational Buildings
43,DCMS,Historic England,08/03/2019,ESRI (UK) Ltd,0040123680,"282,000.00",Corporate Services-IMT,Software Maintenance
44,DCMS,Historic England,29/03/2019,ETH Zurich,0020073115,"38,880.00",Policy & Evidence-National Specialist Services,Technical Research
45,DCMS,Historic England,06/03/2019,exeGesIS Spatial Data Management,0040123661,"25,000.00",Business Improvement-Grants,Hist Environ Prog Projects Gra
46,DCMS,Historic England,04/03/2019,Feilden Clegg Bradley Studios LLP,0040123535,"37,689.71",Shrewsbury Flax Mill Maltings-Shrewsbury Flax Mill Maltings,Fees for Professional Advice
47,DCMS,Historic England,27/03/2019,Feilden Clegg Bradley Studios LLP,0040124038,"32,886.23",Shrewsbury Flax Mill Maltings-Shrewsbury Flax Mill Maltings,Fees for Professional Advice
48,DCMS,Historic England,26/03/2019,Feilden Clegg Bradley Studios LLP,0040124042,"51,254.40",Shrewsbury Flax Mill Maltings-Shrewsbury Flax Mill Maltings,Fees for Professional Advice
49,DCMS,Historic England,20/03/2019,First White Cloth Hall (Leeds) Ltd,0082005326,"200,000.00",Regional Delivery-North East & Yorkshire - RD,Grants Payable Historic Buildings
50,DCMS,Historic England,13/03/2019,Forterra  Building Products Ltd,0081004728,"78,467.50",Business Improvement-Grants,Enabling Programmes Enabling Programmes
51,DCMS,Historic England,20/03/2019,Forterra  Building Products Ltd,0081004766,"70,000.00",Business Improvement-Grants,Enabling Programmes Enabling Programmes
52,DCMS,Historic England,01/03/2019,Freeman Historic Properties Ltd,0082005256,"76,000.00",Regional Delivery-East - RD,Grants Payable Historic Buildings
53,DCMS,Historic England,29/03/2019,Freidman FM Ltd,0040124057,"25,958.95",Corporate Services-Facilities Management,Fees for Professional Advice
54,DCMS,Historic England,27/03/2019,Geckoella Ltd,0040123964,"30,000.00",Business Improvement-Grants,Hist Environ Prog Projects Gra
55,DCMS,Historic England,11/03/2019,Gosport Borough Council,0082005275,"34,380.00",Regional Delivery-London & South East - RD,Grants Payable Historic Buildings
56,DCMS,Historic England,04/03/2019,Government Internal Audit Agency,0040123516,"84,000.00",Governance & Legal-Internal Audit,Technical Advisors
57,DCMS,Historic England,04/03/2019,Harlow Property Management Ltd,0040123570,"54,750.00",Corporate Services-Office Estate,Rent - Operating Leases
58,DCMS,Historic England,12/03/2019,Harwich Electric Palace Trust,0082005291,"270,000.00",Regional Delivery-East - RD,Grants Payable Historic Buildings
59,DCMS,Historic England,12/03/2019,Harwich Electric Palace Trust,0082005292,"30,000.00",Regional Delivery-East - RD,Grants Payable Historic Buildings
60,DCMS,Historic England,18/03/2019,Heritage of London Trust Operations Ltd,0082005297,"36,380.00",Regional Delivery-London & South East - RD,Grants Payable Historic Buildings
61,DCMS,Historic England,13/03/2019,Historic Chapels Trust,0090515520,"66,431.00",Business Improvement-Grants,Grants Payable Other Grants
62,DCMS,Historic England,26/03/2019,Hull City Council,0040124136,"45,600.00",Regional Delivery-North East & Yorkshire - RD,Fees for Professional Advice
63,DCMS,Historic England,13/03/2019,Imperial War Museum,0040123672,"132,000.00",Public Engagement-Content & Marketing,Exhibits/Displays
64,DCMS,Historic England,08/03/2019,Ironbridge Gorge Museum Trust Ltd,0090515506,"32,528.00",Business Improvement-Grants,Grants Payable Other Grants
65,DCMS,Historic England,08/03/2019,Ironbridge Gorge Museum Trust Ltd,0090515506,30.00,Business Improvement-Grants,Grants Payable Other Grants
66,DCMS,Historic England,22/03/2019,Knebworth House Education & Preservation,0082005344,"44,600.00",Regional Delivery-East - RD,Grants Payable Historic Buildings
67,DCMS,Historic England,27/03/2019,Land Use Consultants Ltd,0040124147,"-16,237.60",Business Improvement-Grants,Hist Environ Prog Projects Gra
68,DCMS,Historic England,07/03/2019,Lincolnshire County Council,0081004664,"30,000.00",Business Improvement-Grants,Enabling Programmes Enabling Programmes
69,DCMS,Historic England,20/03/2019,Little Fish (UK) Ltd,0040123605,"93,104.53",Corporate Services-IMT,Hardware Maintenance
70,DCMS,Historic England,08/03/2019,Little Fish (UK) Ltd,0040123616,"78,417.34",Corporate Services-IMT,End User Contracts
71,DCMS,Historic England,08/03/2019,Little Fish (UK) Ltd,0040123617,"44,043.60",Corporate Services-IMT,Service Management Contracts
72,DCMS,Historic England,08/03/2019,Locus Consulting,0040123492,"25,000.00",Business Improvement-Grants,Hist Environ Prog Projects Gra
73,DCMS,Historic England,18/03/2019,London Borough of Barnet,0082005298,"32,758.00",Regional Delivery-London & South East - RD,Grants Payable Historic Buildings
74,DCMS,Historic England,18/03/2019,London Borough of Barnet,0082005308,"27,512.00",Regional Delivery-London & South East - RD,Grants Payable Historic Buildings
75,DCMS,Historic England,22/03/2019,London Borough of Ealing Council,0082005351,"140,000.00",Regional Delivery-London & South East - RD,Grants Payable Historic Buildings
76,DCMS,Historic England,11/03/2019,London Borough of Newham,0082005269,"207,366.00",Regional Delivery-London & South East - RD,Grants Payable Historic Buildings
77,DCMS,Historic England,22/03/2019,London Diocesan Fund,0082005349,"34,650.00",Regional Delivery-London & South East - RD,Grants Payable Historic Buildings
78,DCMS,Historic England,20/03/2019,Museum of London Arch Services,0081004761,"26,683.30",Business Improvement-Grants,Enabling Programmes Enabling Programmes
79,DCMS,Historic England,15/03/2019,Norfolk County Council,0090515540,"26,029.00",Regional Delivery-East - RD,Grants Payable Other Grants
80,DCMS,Historic England,22/03/2019,North Devon Council,0082005362,"30,425.00",Regional Delivery-South West - RD,Grants Payable Historic Buildings
81,DCMS,Historic England,13/03/2019,North Somerset Council,0090515525,"33,542.00",Regional Delivery-South West - RD,Grants Payable Other Grants
82,DCMS,Historic England,19/03/2019,North Somerset Council,0090515567,"39,600.00",Regional Delivery-South West - RD,Grants Payable Other Grants
83,DCMS,Historic England,20/03/2019,North York Moors National Park,0090515579,"28,200.00",Regional Delivery-North East & Yorkshire - RD,Grants Payable Other Grants
84,DCMS,Historic England,20/03/2019,North York Moors National Park,0090515579,"5,549.00",Regional Delivery-North East & Yorkshire - RD,Grants Payable Other Grants
85,DCMS,Historic England,20/03/2019,Northampton Borough Council,0082005325,"35,717.00",Regional Delivery-Midlands - RD,Grants Payable Historic Buildings
86,DCMS,Historic England,20/03/2019,Nottingham City Council,0082005328,"90,800.00",Regional Delivery-Midlands - RD,Grants Payable Historic Buildings
87,DCMS,Historic England,07/03/2019,Oxford Archaeology North,0081004653,"35,756.87",Business Improvement-Grants,Enabling Programmes Enabling Programmes
88,DCMS,Historic England,20/03/2019,Oxford Preservation Trust,0082005332,"105,000.00",Regional Delivery-London & South East - RD,Grants Payable Historic Buildings
89,DCMS,Historic England,07/03/2019,Ratcliffes,0040123666,"48,350.83",Corporate Services-Office Estate,Insurance
90,DCMS,Historic England,07/03/2019,Ratcliffes,0040123667,"283,500.00",Corporate Services-Office Estate,Rent - Operating Leases
91,DCMS,Historic England,19/03/2019,Senator International Ltd,0040123760,"33,033.60",Corporate Services-Corporate,Other Administration
92,DCMS,Historic England,19/03/2019,Senator International Ltd,0040123760,"7,659.32",Corporate Services-Corporate,Other Administration
93,DCMS,Historic England,26/03/2019,Simetrica Ltd,0040123807,"50,000.00",Business Improvement-Grants,Hist Environ Prog Projects Gra
94,DCMS,Historic England,07/03/2019,Skylarkeology,0081004678,"30,000.00",Business Improvement-Grants,Enabling Programmes Enabling Programmes
95,DCMS,Historic England,07/03/2019,Soc of Antiquaries of London,0081004666,"40,000.00",Business Improvement-Grants,Enabling Programmes Enabling Programmes
96,DCMS,Historic England,08/03/2019,SoftwareOne UK Ltd,0040123563,"39,437.75",Corporate Services-IMT,Software Maintenance
97,DCMS,Historic England,22/03/2019,SoftwareOne UK Ltd,0040123926,"34,057.78",Corporate Services-IMT,Hosting
98,DCMS,Historic England,27/03/2019,South Kesteven District Council,0090515619,"33,493.00",Regional Delivery-Midlands - RD,Grants Payable Area
99,DCMS,Historic England,18/03/2019,St Mary's at Finchley PCC,0082005311,"63,440.00",Regional Delivery-London & South East - RD,Grants Payable Historic Buildings
100,DCMS,Historic England,27/03/2019,Stoke-on-Trent City Council,0090515615,"17,771.00",Regional Delivery-Midlands - RD,Grants Payable Area
101,DCMS,Historic England,27/03/2019,Stoke-on-Trent City Council,0090515615,"7,417.00",Regional Delivery-Midlands - RD,Grants Payable Area
102,DCMS,Historic England,22/03/2019,Stow Maries Great War Aerodrome Ltd,0082005357,"60,000.00",Regional Delivery-East - RD,Grants Payable Historic Buildings
103,DCMS,Historic England,05/03/2019,Taunton Deane Borough Council,0082005266,"26,856.00",Regional Delivery-South West - RD,Grants Payable Historic Buildings
104,DCMS,Historic England,19/03/2019,Tda Interiors South Ltd,0040123886,"33,690.23",Corporate Services-Corporate,Wrks for Operational Buildings
105,DCMS,Historic England,19/03/2019,Tda Interiors South Ltd,0040123886,"21,343.22",Corporate Services-Corporate,Wrks for Operational Buildings
106,DCMS,Historic England,19/03/2019,Thanet District Council,0090515570,"13,955.52",Regional Delivery-London & South East - RD,Grants Payable Other Grants
107,DCMS,Historic England,19/03/2019,Thanet District Council,0090515570,"31,423.03",Regional Delivery-London & South East - RD,Grants Payable Other Grants
108,DCMS,Historic England,06/03/2019,The Architectural Heritage Fund,0090515501,"241,652.00",Business Improvement-Grants,Grants Payable Other Grants
109,DCMS,Historic England,11/03/2019,The Auckland Castle Trust,0082005277,"45,000.00",Regional Delivery-North East & Yorkshire - RD,Grants Payable Historic Buildings
110,DCMS,Historic England,12/03/2019,The Cornwall Heritage Trust Ltd,0082005290,"44,774.00",Regional Delivery-South West - RD,Grants Payable Historic Buildings
111,DCMS,Historic England,18/03/2019,The Crossness Engines Trust,0082005309,"29,519.00",Regional Delivery-London & South East - RD,Grants Payable Historic Buildings
112,DCMS,Historic England,13/03/2019,The Gardens Trust (Localism),0090515522,"53,766.00",Business Improvement-Grants,Grants Payable Other Grants
113,DCMS,Historic England,13/03/2019,The Gardens Trust (SC),0090515521,"40,615.00",Business Improvement-Grants,Grants Payable Other Grants
114,DCMS,Historic England,19/03/2019,The Inland Waterways Association,0090515568,"30,752.00",Business Improvement-Grants,Grants Payable Other Grants
115,DCMS,Historic England,11/03/2019,The Princes Foundation,0081004722,"25,000.00",Business Improvement-Grants,Enabling Programmes Enabling Programmes
116,DCMS,Historic England,27/03/2019,The SAVE Trust,0082005373,"28,665.00",Regional Delivery-South West - RD,Grants Payable Historic Buildings
117,DCMS,Historic England,20/03/2019,The Trustees of Trinity Hospital,0082005334,"25,749.00",Regional Delivery-Midlands - RD,Grants Payable Historic Buildings
118,DCMS,Historic England,22/03/2019,The Weld Estate,0082005360,"28,263.00",Regional Delivery-South West - RD,Grants Payable Historic Buildings
119,DCMS,Historic England,22/03/2019,Thurrock Council,0082005354,"25,000.00",Regional Delivery-East - RD,Grants Payable Historic Buildings
120,DCMS,Historic England,19/03/2019,Thurrock Council,0090515569,"32,471.00",Regional Delivery-East - RD,Grants Payable Other Grants
121,DCMS,Historic England,27/03/2019,University College London,0081004817,"55,000.00",Business Improvement-Grants,Enabling Programmes Enabling Programmes
122,DCMS,Historic England,12/03/2019,University of York,0040123704,"28,000.00",Business Improvement-Grants,Hist Environ Prog Projects Gra
123,DCMS,Historic England,27/03/2019,Urban Splash (Melville) Ltd,0082005372,"147,427.00",Regional Delivery-South West - RD,Grants Payable Historic Buildings
124,DCMS,Historic England,22/03/2019,Vodafone Corporate Ltd,0020073095,"35,496.19",Corporate Services-IMT,Telephone and Communications
125,DCMS,Historic England,22/03/2019,Vodafone Corporate Ltd,0020073095,232.64,Corporate Services-IMT,Telephone and Communications
126,DCMS,Historic England,18/03/2019,Vodafone Corporate Ltd,0040123036,"28,614.66",Corporate Services-IMT,Telephone and Communications
127,DCMS,Historic England,18/03/2019,Vodafone Corporate Ltd,0040123036,50.60,Corporate Services-IMT,Telephone and Communications
128,DCMS,Historic England,18/03/2019,Vodafone Corporate Ltd,0040123037,"61,734.92",Corporate Services-IMT,Telephone and Communications
129,DCMS,Historic England,18/03/2019,Vodafone Corporate Ltd,0040123037,30.60,Corporate Services-IMT,Telephone and Communications
130,DCMS,Historic England,18/03/2019,Vodafone Corporate Ltd,0040123053,"28,582.30",Corporate Services-IMT,Telephone and Communications
131,DCMS,Historic England,18/03/2019,Vodafone Corporate Ltd,0040123053,115.13,Corporate Services-IMT,Telephone and Communications
132,DCMS,Historic England,18/03/2019,Vodafone Corporate Ltd,0040123158,"29,996.11",Corporate Services-IMT,Telephone and Communications
133,DCMS,Historic England,18/03/2019,Vodafone Corporate Ltd,0040123158,6.50,Corporate Services-IMT,Telephone and Communications
134,DCMS,Historic England,22/03/2019,Vodafone Corporate Ltd,0040123787,"36,797.74",Corporate Services-IMT,Telephone and Communications
135,DCMS,Historic England,22/03/2019,Vodafone Corporate Ltd,0040123787,1.28,Corporate Services-IMT,Telephone and Communications
136,DCMS,Historic England,28/03/2019,"W H Smith, PR Ensor SAP & Halston Dev.",0040124198,"35,516.40",Corporate Services-Office Estate,Rent - Operating Leases
137,DCMS,Historic England,13/03/2019,Wakefield Council,0081004736,"25,000.00",Business Improvement-Grants,Enabling Programmes Enabling Programmes
138,DCMS,Historic England,19/03/2019,War Memorials Trust,0090515543,"36,000.00",Business Improvement-Grants,Grants Payable Other Grants
139,DCMS,Historic England,14/03/2019,Waveney District Council,0090515531,"27,098.00",Regional Delivery-East - RD,Grants Payable Other Grants
140,DCMS,Historic England,01/03/2019,Wentworth Woodhouse Preservation Trust,0082005259,"123,294.00",Regional Delivery-North East & Yorkshire - RD,Grants Payable Historic Buildings
141,DCMS,Historic England,01/03/2019,Wentworth Woodhouse Preservation Trust,0082005262,"242,597.00",Regional Delivery-North East & Yorkshire - RD,Grants Payable Historic Buildings
142,DCMS,Historic England,01/03/2019,Wentworth Woodhouse Preservation Trust,0082005263,"1,231,594.00",Regional Delivery-North East & Yorkshire - RD,Grants Payable Historic Buildings
143,DCMS,Historic England,22/03/2019,Wessex Archaeology Ltd,0040123921,"75,000.00",Business Improvement-Grants,Maritime Commissions
144,DCMS,Historic England,20/03/2019,Worcester Cathedral,0082005333,"38,388.00",Regional Delivery-Midlands - RD,Grants Payable Historic Buildings
